Cogmind - Beta 11 X3 @@@ ROGUE MODE // 2021.03.24 @ 13:23:10 Player: Luigi Panache Result: Destroyed by G-47 Trooper with Particle Gun Performance ------------- Evolutions (2) 1000 Regions Visited (5) 1000 Robots Destroyed (62) 310 Value Destroyed (1502) 1502 Prototype IDs (1) 20 Alien Tech Used (0) 0 Bonus (0) 0 TOTAL SCORE: 3832 Bonus ------- None Cogmind --------- Core Integrity 0/550 Matter 280/300 Energy 32/100 System Corruption 3% Temperature Cool (18) Movement Core (3400) Ox67 Location -8/Materials Parts ------- > --- POWER (1) -------- (None) > --- PROPULSION (4) --- (None) > --- UTILITY (4) ------ Humpback Machine Analyzer > --- WEAPON (2) ------- Heavy Assault Rifle > --- INVENTORY (35) --- Light Treads Armored Treads Advanced Heat Sink High-capacity Storage Unit High-capacity Matter Pod (200) Particle Gun Light EM Pulse Cannon Light EM Pulse Cannon Peak State ------------ > --- POWER ------------ Nuclear Core > --- PROPULSION ------- Light Treads Armored Treads Wheel Wheel > --- UTILITY ---------- Humpback Machine Analyzer Hacking Suite > --- WEAPON ----------- Heavy Assault Rifle Heavy Assault Rifle > --- INVENTORY -------- Ion Engine Wheel Compact Wheel Compact Wheel High-capacity Storage Unit Humpback High-capacity Matter Pod Core Shielding EM Pulse Gun EM Pulse Gun Heavy Assault Rifle Grenade Launcher [Rating: 22] Favorites ----------- Power Nuclear Core Engine Ion Engine Power Core Nuclear Core Propulsion Light Treads Treads Light Treads Leg Aluminum Leg Wheel Compact Wheel Utility Machine Analyzer Storage Small Storage Unit Processor Machine Analyzer Hackware Hacking Suite Weapon Heavy Assault Rifle Energy Gun EM Pulse Gun Energy Cannon Light EM Pulse Cannon Ballistic Gun Heavy Assault Rifle Launcher Grenade Launcher Build | -11 -10 -10 -10 -9 -8 ------- Run | Scr Mat Min Exi Min Mat Slots Evolved 4 | . . . . . 4 Power . | . . . . . . Propulsion 2 | . . . . . 2 Utility 2 | . . . . . 2 Weapon . | . . . . . . Parts Attached 38 | 2 5 1 1 . 29 Power 1 | . . 1 . . . Engine . | . . . . . . Core 1 | . . 1 . . . Reactor . | . . . . . . Propulsion 17 | 2 . . . . 15 Treads 5 | 2 . . . . 3 Leg . | . . . . . . Wheel 12 | . . . . . 12 Hover . | . . . . . . Flight . | . . . . . . Utility 7 | . 2 . 1 . 4 Device . | . . . . . . Storage 3 | . . . 1 . 2 Processor 3 | . 2 . . . 1 Hackware 1 | . . . . . 1 Protection . | . . . . . . Artifact . | . . . . . . Weapon 13 | . 3 . . . 10 Energy Gun 3 | . . . . . 3 Energy Cannon 1 | . . . . . 1 Ballistic Gun 7 | . 3 . . . 4 Ballistic Cannon . | . . . . . . Launcher 2 | . . . . . 2 Special Weapon . | . . . . . . Impact Weapon . | . . . . . . Slashing Weapon . | . . . . . . Piercing Weapon . | . . . . . . Special Melee Weapon . | . . . . . . Unidentified Prototypes 1 | . . . . . 1 Corrupted Parts 1 | . . . . . 1 System Corruption 3 | . . . . . 3 Parts Lost 24 | . . . . . 24 Power 1 | . . . . . 1 Propulsion 13 | . . . . . 13 Utility 2 | . . . . . 2 Weapon 8 | . . . . . 8 Highest Loss Streak 11 | . . . . . 11 Average Slot Usage (%) 92 | . 99 100 100 100 74 Engine 4 | . 14 8 . . . Core 7 | . . 5 14 14 6 Treads 20 | . 28 28 28 28 2 Wheel 6 | . . . . . 22 Storage 12 | . 14 14 14 14 9 Processor 12 | . 13 14 14 14 10 Hackware 2 | . . . . . 6 Energy Gun 1 | . 1 . . . 2 Ballistic Gun 23 | . 26 28 28 28 12 Naked Turns . | . . . . . . Heaviest Build 213 | 14 16 18 53 53 213 Greatest Support 52 | 40 40 40 40 40 52 Greatest Overweight (x) 70 | . . . 1 1 70 Average Overweight (x) 1 | . . . . 1 6 Largest Inventory Capacity 35 | 8 8 8 20 20 35 Average Capacity 19 | 8 8 8 16 20 34 Most Carried 20 | 6 8 8 13 16 20 Average Carried 10 | 6 7 8 9 14 13 Final Capacity 35 | 8 8 8 20 20 35 Final Carried 16 | 6 8 8 13 16 8 Class Distribution -------------------- 69% | Mutant 30% | Hauler-Mutant Dominant Class ---------------- Mutant | -10/Materials Mutant | -10/Mines Mutant | -10/Exiles Mutant | -9/Mines Hauler-Mutant | -8/Materials Resources | -11 -10 -10 -10 -9 -8 ----------- Run | Scr Mat Min Exi Min Mat Matter Collected 1409 | 220 301 5 20 78 785 Remotely . | . . . . . . Salvage Created 2089 | . 457 . . 171 1461 Parts 128 | . 37 . . 12 79 Haulers Intercepted . | . . . . . . Recyclers Shooed 3 | . . 1 . . 2 Parts Field Recycled . | . . . . . . Retrieved Matter . | . . . . . . Parts Self-Destructed . | . . . . . . Prevented . | . . . . . . Kills | -11 -10 -10 -10 -9 -8 ------- Run | Scr Mat Min Exi Min Mat Combat Hostiles Destroyed 35 | . 9 . . 3 23 Melee 1 | . 1 . . . . Guns 29 | . 8 . . 3 18 AOE 5 | . . . . . 5 Classes Destroyed 10 | . 7 . . . 3 Worker 9 | . 2 . . 1 6 Builder 5 | . . . . . 5 Recycler 7 | . 1 . . 1 5 Mechanic 1 | . 1 . . . . Operator 1 | . 1 . . . . Watcher 4 | . 3 . . . 1 Swarmer 7 | . 3 . . . 4 Grunt 24 | . 6 . . 3 15 Duelist 2 | . . . . . 2 Sentry 2 | . . . . . 2 Best Kill Streak 10 | . 4 . . 2 10 Combat Bots Only 8 | . 4 . . 2 8 Max Kills in Single Turn 3 | . 2 . . 1 3 Gunslinging 1 | . 1 . . . 1 Exploded 2 | . . . . . 2 Melee 1 | . 1 . . . . Uniques/NPCs Destroyed . | . . . . . . Combat | -11 -10 -10 -10 -9 -8 -------- Run | Scr Mat Min Exi Min Mat Damage Taken 3233 | . 377 . . 155 2701 Core 658 | . 96 . . 11 551 Absorbed by Shields . | . . . . . . Core Remaining (%) 78 | 100 . . . 57 . Volleys Fired 150 | . 43 . . 13 94 Largest 2 | . 2 . . 2 2 Hottest 85 | . 60 . . 46 85 Shots Fired 278 | . 86 . . 26 166 Gun 270 | . 86 . . 26 158 Cannon . | . . . . . . Launcher 8 | . . . . . 8 Special . | . . . . . . Kinetic 233 | . 85 . . 26 122 Thermal . | . . . . . . Explosive 8 | . . . . . 8 Electromagnetic 37 | . 1 . . . 36 Robot Hit Streak 10 | . 9 . . 10 8 Robot Miss Streak 5 | . 2 . . 3 5 Penetration Max . | . . . . . . Secondary Targets 3 | . 1 . . . 2 Max Gunslinging Chain 1 | . 1 . . . 1 Shots Hit Robots 178 | . 55 . . 16 107 Core Hits 119 | . 24 . . 8 87 Critical Hits . | . . . . . . Critical Kills . | . . . . . . Critical Parts Destroyed . | . . . . . . Melee Attacks . | . . . . . . Impact . | . . . . . . Slashing . | . . . . . . Piercing . | . . . . . . Sneak Attacks . | . . . . . . Combat Hostiles . | . . . . . . Follow-up Attacks . | . . . . . . Damage Inflicted 3484 | . 760 9 . 253 2462 Guns 2529 | . 745 . . 239 1545 Cannons . | . . . . . . Explosions 895 | . . . . . 895 Melee . | . . . . . . Ramming 60 | . 15 9 . 14 22 Kinetic 2165 | . 733 . . 239 1193 Thermal 70 | . . . . . 70 Explosive 825 | . . . . . 825 Electromagnetic 364 | . 12 . . . 352 Impact . | . . . . . . Slashing . | . . . . . . Piercing . | . . . . . . Highest Corruption 3 | . . . . . 3 Average Corruption 3 | . . . . . 3 Corruption Purged . | . . . . . . Effects 11 | . . . . . 11 Message Errors 1 | . . . . . 1 Matter Fused 3 | . . . . . 3 Heat Flow Errors 1 | . . . . . 1 Energy Discharges 3 | . . . . . 3 Data Loss (minor) 1 | . . . . . 1 Weapon Failures 2 | . . . . . 2 Overload Shots . | . . . . . . Overflow Damage 18 | . . . . . 18 Projectiles . | . . . . . . Explosions 16 | . . . . . 16 Melee 2 | . . . . . 2 Knockbacks . | . . . . . . Impact . | . . . . . . Kinetic . | . . . . . . Secondary . | . . . . . . Self-Inflicted Damage 109 | . . . . . 109 Shots 5 | . . . . . 5 Rammed 10 | . 4 3 . 2 1 Targets Rammed 14 | . 6 3 . 4 1 Kicked . | . . . . . . Crushed 4 | . 2 . . 2 . Highest Temperature 135 | . 5 . . 21 135 Average Temperature 16 | . 3 . . 9 26 Received Heat Transfer 1389 | . 192 . . 90 1107 Siege Activations . | . . . . . . Robots Corrupted . | . . . . . . Combat Hostiles . | . . . . . . Parts Fried 2 | . . . . . 2 Impact Corruptions 1 | . . . . . 1 Robots Melted . | . . . . . . Combat Hostiles . | . . . . . . Parts Melted . | . . . . . . Heat Transferred 100 | . . . . . 100 Parts Sabotaged . | . . . . . . Parts Stolen . | . . . . . . Parts Stripped . | . . . . . . Power Chain Reactions 1 | . . . . . 1 Missiles Intercepted . | . . . . . . Alert | -11 -10 -10 -10 -9 -8 ------- Run | Scr Mat Min Exi Min Mat Peak Influence 361 | . 193 66 . 80 361 Initial 66 | . . 66 . . . Average 92 | . 92 66 . 24 133 Maximum Alert Level 1 | . . . . . 1 Low Security (%) 86 | 100 100 100 . 100 65 Level 1 13 | . . . . . 34 Level 2 . | . . . . . . Level 3 . | . . . . . . Level 4 . | . . . . . . Level 5 . | . . . . . . High Security . | . . . . . . Max Security . | . . . . . . Squads Dispatched 7 | . 2 1 . . 4 Investigation 2 | . . 1 . . 1 Extermination . | . . . . . . Reinforcement 5 | . 2 . . . 3 Assault . | . . . . . . Garrison . | . . . . . . Intercept . | . . . . . . Construction Impeded 1 | . . . . . 1 Haulers Reinforced . | . . . . . . Stealth | -11 -10 -10 -10 -9 -8 --------- Run | Scr Mat Min Exi Min Mat Distress Signals 4 | . 1 . . . 3 Communications Jammed . | . . . . . . Distress Signals . | . . . . . . Times Spotted 60 | . 19 . . 3 38 Peak Tracking Total 8 | . 3 . . 3 8 Tactical Retreats 4 | . . . . . 4 Traps | -11 -10 -10 -10 -9 -8 ------- Run | Scr Mat Min Exi Min Mat Traps Triggered . | . . . . . . Indirectly . | . . . . . . Trap Hack Attempts . | . . . . . . Triggered . | . . . . . . Disarmed . | . . . . . . Reprogrammed . | . . . . . . Reused . | . . . . . . Traps Extracted . | . . . . . . Installed . | . . . . . . Triggered . | . . . . . . Machines | -11 -10 -10 -10 -9 -8 ---------- Run | Scr Mat Min Exi Min Mat Machines Disabled 3 | . 2 . . . 1 Max in Single Turn 1 | . 1 . . . 1 Machines Sabotaged . | . . . . . . Garrisons Compromised . | . . . . . . Overloaded Fab Kills . | . . . . . . Fab Network Shutdowns . | . . . . . . Hacking | -11 -10 -10 -10 -9 -8 --------- Run | Scr Mat Min Exi Min Mat Machines Accessed 10 | . 5 1 1 . 3 Terminals 7 | . 4 . . . 3 Fabricators . | . . . . . . Repair Stations 1 | . 1 . . . . Recycling Units . | . . . . . . Scanalyzers . | . . . . . . Garrison Access . | . . . . . . Total Hacks 30 | . 17 1 1 . 11 Successful 15 | . 9 1 1 . 4 Failed 14 | . 7 . . . 7 Catastrophic 3 | . 1 . . . 2 Database Lockouts 1 | . 1 . . . . Manual 19 | . 13 . . . 6 Terminals 23 | . 12 . . . 11 Fabricators . | . . . . . . Repair Stations 5 | . 5 . . . . Recycling Units . | . . . . . . Scanalyzers . | . . . . . . Garrison Access . | . . . . . . Terminal Hacks 11 | . 5 1 1 . 4 Record 1 | . . . 1 . . Part Schematic 3 | . 3 . . . . Open Door 1 | . . 1 . . . Level Access Points 1 | . . . . . 1 Terminal Index 1 | . 1 . . . . Alert Level 3 | . 1 . . . 2 Unreport Threat 1 | . . . . . 1 Fabricator Hacks . | . . . . . . Repair Station Hacks 1 | . 1 . . . . Scan Component 1 | . 1 . . . . Recycling Unit Hacks . | . . . . . . Scanalyzer . | . . . . . . Garrison Access Hacks . | . . . . . . Unauthorized Hacks 3 | . 3 . . . . Terminals 2 | . 2 . . . . Botnet 1 | . 1 . . . . Operators 1 | . 1 . . . . Fabricators . | . . . . . . Repair Stations 1 | . 1 . . . . Mechanics 1 | . 1 . . . . Recycling Units . | . . . . . . Scanalyzers . | . . . . . . Garrison Access . | . . . . . . Data Cores Recovered . | . . . . . . Used . | . . . . . . Hacking Detections 6 | . 4 . . . 2 Full Trace Events 2 | . 1 . . . 1 Feedback Events . | . . . . . . Feedback Blocked . | . . . . . . Robot Schematics Acquired . | . . . . . . Robots Built . | . . . . . . Matter . | . . . . . . Time . | . . . . . . Total Robot Build Rating . | . . . . . . Part Schematics Acquired 3 | . 3 . . . . Parts Built . | . . . . . . Matter . | . . . . . . Time . | . . . . . . Total Part Build Rating . | . . . . . . Parts Repaired . | . . . . . . Time . | . . . . . . Parts Recycled . | . . . . . . Recycled Matter . | . . . . . . Retrieved Matter . | . . . . . . Retrieved Components . | . . . . . . Parts Scanalyzed . | . . . . . . Part Schematics Acquired . | . . . . . . Parts Damaged . | . . . . . . Bothacking | -11 -10 -10 -10 -9 -8 ------------ Run | Scr Mat Min Exi Min Mat Used RIF Installer . | . . . . . . Robots Hacked . | . . . . . . Non-combat . | . . . . . . Combat . | . . . . . . Robot Hacks Applied . | . . . . . . Relay Couplers Released . | . . . . . . Robots Rewired . | . . . . . . Allies Hacked . | . . . . . . Hacks Repelled . | . . . . . . Allies | -11 -10 -10 -10 -9 -8 -------- Run | Scr Mat Min Exi Min Mat Total Allies 2 | . . 2 . . . Largest Group 2 | . . 2 1 . . Highest-Rated Group 47 | . . 47 31 . . Highest-Rated Ally 31 | . . 31 31 . . Total Orders . | . . . . . . Ally Attacks . | . . . . . . Total Damage . | . . . . . . Kills . | . . . . . . Allies Corrupted . | . . . . . . Allies Melted . | . . . . . . Intel | -11 -10 -10 -10 -9 -8 ------- Run | Scr Mat Min Exi Min Mat Robot Analysis Total . | . . . . . . Derelict Logs Recovered 1 | . . . . 1 . Drone Launches . | . . . . . . Drone Recoveries . | . . . . . . Exploration | -11 -10 -10 -10 -9 -8 ------------- Run | Scr Mat Min Exi Min Mat Turns Passed 3038 | 6 746 248 659 460 919 Spaces Moved 1158 | 3 352 151 302 154 196 Core 4 | . . . . . 4 Treads 974 | 2 352 151 302 154 13 Legs 1 | 1 . . . . . Wheels 179 | . . . . . 179 Hover . | . . . . . . Flight . | . . . . . . Fastest Speed 90 | 120 160 160 160 260 90 Average Speed 210 | 146 160 160 217 260 289 Slowest Speed 3550 | 160 160 160 260 260 3550 Overloaded Moves . | . . . . . . Propulsion Burnouts . | . . . . . . Robots Hopped . | . . . . . . Cave-ins Triggered . | . . . . . . Exploration Rate (%) 38 | 2 58 46 56 49 17 Regions Visited 5 Branch Regions 3 Pre-discovered Areas 1 | . . . 1 . . Known Exits Taken . | . . . . . . Unknown Exits Taken 5 | 1 1 1 1 1 . Scrap Searched . | . . . . . . Spaces Dug . | . . . . . . Terrain Destroyed 63 | . . . . . 63 Melee . | . . . . . . Projectile . | . . . . . . AOE 63 | . . . . . 63 Terrain Rammed . | . . . . . . Walls Destroyed . | . . . . . . Machines Disabled . | . . . . . . Actions | -11 -10 -10 -10 -9 -8 --------- Run | Scr Mat Min Exi Min Mat Total 1472 | 4 447 156 306 182 377 Wait 74 | . 31 1 . 9 33 Move 1153 | 2 351 150 301 153 196 Hop . | . . . . . . Pick Up 31 | . 5 . 3 3 20 Fast Attach 9 | . 2 1 . . 6 Attach 20 | . . . . . 20 Detach 5 | . 1 . . . 4 Swap 9 | 2 3 . 1 . 3 Drop 7 | . 5 1 1 . . Fire 150 | . 43 . . 13 94 Melee . | . . . . . . Ram 1 | . . . . . 1 Kick . | . . . . . . Crush 13 | . 6 3 . 4 . Escape Stasis . | . . . . . . Rewire . | . . . . . . Trap . | . . . . . . Miscellaneous . | . . . . . . Route ------- -11/Scrapyard -10/Materials (discovered 2 exits: [*Mat] / *Min) -10/Mines -10/Exiles -9/Mines -8/Materials (discovered 4 exits: Fac x3 / [*Sto]) History --------- Turn | Location | Event 1 | -11/Scrapyard | Discovered new exit (range 2) 7 | -11/Scrapyard | Entered Materials 316 | -10/Materials | Build established: Mutant 460 | -10/Materials | Discovered new exit (range 11) 734 | -10/Materials | Discovered new exit (range 12) 737 | -10/Materials | Central database locked down 753 | -10/Materials | Entered Mines 853 | -10/Mines | Deemed a non-threat by the Exiles lab entrance 854 | -10/Mines | Discovered new exit (range 5) 903 | -10/Mines | Met a Derelict shopkeep closing up shop 1001 | -10/Mines | Entered Exiles 1001 | -10/Exiles | Accompanied by 1 ally 1031 | -10/Exiles | Led the pair of lost Derelicts to a safe place 1041 | -10/Exiles | Met 8R-AWN 1065 | -10/Exiles | Met EX-HEX 1157 | -10/Exiles | Met EX-DEC 1553 | -10/Exiles | Learned location of Zion (-7) 1623 | -10/Exiles | Discovered new exit (range 14) 1660 | -10/Exiles | Entered Mines 2096 | -9/Mines | Discovered new exit (range 10) 2120 | -9/Mines | Entered Materials 2120 | -8/Materials | Evolved 4 slots: Propulsion x2, Utility x2 2121 | -8/Materials | Identified exit to Factory 2380 | -8/Materials | Lost 3 parts (2n1w) 2412 | -8/Materials | Build established: Hauler-Mutant 2583 | -8/Materials | Discovered new exit (range 9) 2832 | -8/Materials | Destroyed 8 combat bots 2836 | -8/Materials | Core integrity fell below 50% 2878 | -8/Materials | Lost 11 parts (1p4n2u4w) 3019 | -8/Materials | Core integrity fell below 20% 3039 | -8/Materials | Destroyed by G-47 Trooper with Particle Gun Last Messages --------------- 02976_ ALERT: Hostiles spotted, dispatching reinforcements to Terminal M009. 02979_ Door malfunctions. 02982_ Acquired 43 matter. 02986_ G-47 Trooper misfires. 02988_ EM Pulse Gun destroyed. 02991_ Particle Gun fried. 02991_ Imp. Heat Sink fried. 02991_ G-47 Trooper destroyed. 02993_ U-05 Engineer repairs door. 02995_ System corrupted: Energy discharge (-3). 03010_ Wheel destroyed. 03010_ R-06 Scavenger collects Aluminum Leg. 03021_ Wheel destroyed. 03021_ Imp. EM Shotgun destroyed. 03022_ Com. Wheel destroyed. 03029_ Discarded Terrain Scan Processor. 03034_ Lgt. EM Pulse Cannon destroyed. 03035_ Wheel destroyed. 03036_ U-05 Engineer builds a Door. Map ----- +----------------------------------------------------+ | ?????????????????????????????????????????????????? | | ?????????????????????????????????????????????????? | | ?????????????????????????????????????????????????? | | ?????????????????????????????????????????????????? | | ?????????????????????????????????????????????????? | | ?????????????????????????????????????????????????? | | ?????????????????????????????????????????????????? | | ??????????????"""????????????????????????????????? | | ??????????????"""????????????????????????????????? | | ??????????"T"?"""?????? ???????????????????????? | | ??????????"""?????????# #??????????????????????? | | ??????????????????????# #??????????????????????? | | ???????????##?????????# #??????????????????????? | | ??????????? ????????## #??????????????????????? | | ??????????? ????????? #??????????????????????? | | ??????????# ????????? #??????????????????????? | | ??????????# ????????? #??????????????????????? | | ??????????# ?????????# u+??????????????????????? | | ??????????# #?????????# #??????????????????????? | | ??????????# #?????????# Y #??????????????????????? | | #####+##### #?????????# #??????????????????????? | | ########### #??????????????????????? | | + # #???????T??????????????? | | ####" u #= #??????????????????????? | | ###### ####*#??#T %g* #??????????????????????? | | ??????????# #??#" """ #[ @#??????????????????????? | | ??????????#=#??# """ # #??????????????????????? | | ?????????## ##?# """ #ggg#######/#??????????????? | | ?????????## ########### *%= ???????? | | ?????????## #! ##?????#